Cogmind - Beta 15 @@@ ROGUE MODE // 2025.08.09 @ 09:22:54 Player: GayPredator Result: Destroyed by G-73 Enforcer with Heavy Laser Performance ------------- Evolutions (7) 3500 Regions Visited (20) 4000 Robots Destroyed (319) 1595 Value Destroyed (14410) 14410 Prototype IDs (35) 700 Alien Tech Used (2) 400 Bonus (9852) 9852 TOTAL SCORE: 34457 Bonus ------- Triggered High Security 500 Triggered Max Security 1000 High Alert Combat Kills 3867 Follower Combat Kills 885 Entered Garrisons 800 Used RIF Installer 2500 Aligned with FarCom 300 Cogmind --------- Core Integrity 0/1300 Matter 137/300 Energy 100/100 System Corruption 8% Temperature Cool (0) Movement Core (50) Location -3/Quarantine Parts ------- > --- POWER (2) -------- (None) > --- PROPULSION (6) --- (None) > --- UTILITY (9) ------ (None) > --- WEAPON (4) ------- (None) > --- INVENTORY (5) ---- Gamma Rifle Heavy Dispersion Rifle Hypervelocity Railgun Peak State ------------ > --- POWER ------------ Heavy Deuterium Engine > --- PROPULSION ------- Multireflex Exoskeleton Multireflex Exoskeleton > --- UTILITY ---------- Cryofiber Web Advanced Cooling System Huge Storage Unit Improved Trap Scanner Advanced Targeting Computer Advanced Phase Shifter Improved Medium Armor Plating Relay Coupler [NC] > --- WEAPON ----------- Plasma Rifle Plasma Rifle YOLO Cannon > --- INVENTORY -------- Heavy Deuterium Engine Multireflex Exoskeleton Advanced Heat Sink Compact Battery Improved Weapon Cycler Hacking Suite System Shield Relay Coupler [NC] Relay Coupler [NC] Relay Coupler [Grunt] Relay Coupler [Grunt] Relay Coupler [Grunt] Relay Coupler [Duelist] Relay Coupler [Sentry] Relay Coupler [Behemoth] Shock Rifle Plasma Rifle Rocket Array Long-range Missile Launcher Remote Datajack Remote Datajack Improved Remote Datajack [Rating: 100] Favorites ----------- Power Improved Deuterium Engine Engine Improved Deuterium Engine Power Core Neutrino Core Reactor Matter Drive Propulsion Light Treads Treads Light Treads Leg Multireflex Exoskeleton Wheel Armored Huge Wheel Hover Unit Gravmag Array Flight Unit Impulse Thruster Array Utility Large Storage Unit Device Cooling System Storage Large Storage Unit Processor Advanced Targeting Computer Hackware Relay Coupler [NC] Protection Hardened Heavy Armor Plating Weapon Gatling Laser Energy Gun Gatling Laser Energy Cannon YOLO Cannon Ballistic Gun Assault Rifle Ballistic Cannon Light Cannon Launcher Heavy Missile Launcher Special Weapon Remote Datajack Impact Weapon Flail Special Melee Weapon Improved Datajack Build | -11 -10 -9 -9 -9 -8 -8 -7 -7 -7 -7 -6 -6 -6 -6 -5 -5 -5 -4 -3 -3 ------- Run | Yrd Mat Mat Min Exi Min Mat Fac Gar Fac Gar Fac Gar Fac Gar Fac Upp Upp Fac Res Qua Slots Evolved 14 | . . 2 . . . 2 2 . . . 2 . . . 2 . . 2 2 . Power 1 | . . . . . . . . . . . . . . . . . . 1 . . Propulsion 4 | . . 1 . . . . 1 . . . . . . . . . . 1 1 . Utility 7 | . . 1 . . . 1 1 . . . 1 . . . 2 . . . 1 . Weapon 2 | . . . . . . 1 . . . . 1 . . . . . . . . . Parts Attached 195 | 8 4 26 2 . 1 20 7 20 8 3 26 5 6 12 16 4 . 9 11 7 Power 19 | 1 1 3 . . . 1 1 1 . 1 2 . . 1 2 2 . 1 1 1 Engine 16 | 1 1 3 . . . 1 1 1 . 1 2 . . 1 2 1 . 1 . . Core 1 | . . . . . . . . . . . . . . . . 1 . . . . Reactor 2 | . . . . . . . . . . . . . . . . . . . 1 1 Propulsion 49 | 2 . 9 2 . . 6 1 6 4 . 4 . . . 4 1 . 3 5 2 Treads 24 | 2 . 8 2 . . 6 1 1 . . 1 . . . . . . . 3 . Leg 16 | . . . . . . . . 5 4 . 2 . . . 4 . . 1 . . Wheel 2 | . . 1 . . . . . . . . 1 . . . . . . . . . Hover 3 | . . . . . . . . . . . . . . . . 1 . 2 . . Flight 4 | . . . . . . . . . . . . . . . . . . . 2 2 Utility 68 | 2 2 5 . . . 5 5 6 3 2 11 2 5 7 6 1 . 2 3 1 Device 31 | 1 1 3 . . . 1 1 3 2 1 7 . 1 2 3 1 . 2 2 . Storage 4 | 1 1 . . . . 1 . . . . . . 1 . . . . . . . Processor 5 | . . 2 . . . . . 1 . . . 1 . . . . . . 1 . Hackware 16 | . . . . . . . 2 . . 1 3 1 1 4 3 . . . . 1 Protection 12 | . . . . . . 3 2 2 1 . 1 . 2 1 . . . . . . Artifact . | . . . . . . . . . . . . . . . . . . . . . Weapon 59 | 3 1 9 . . 1 8 . 7 1 . 9 3 1 4 4 . . 3 2 3 Energy Gun 39 | 2 . 6 . . . 5 . 5 1 . 6 2 1 4 2 . . 3 . 2 Energy Cannon 5 | . . . . . . 3 . . . . 1 1 . . . . . . . . Ballistic Gun 4 | 1 . 1 . . . . . . . . . . . . 1 . . . 1 . Ballistic Cannon 2 | . . 1 . . . . . . . . . . . . . . . . 1 . Launcher 4 | . . . . . 1 . . 1 . . 1 . . . 1 . . . . . Special Weapon 3 | . 1 . . . . . . 1 . . 1 . . . . . . . . . Impact Weapon 1 | . . 1 . . . . . . . . . . . . . . . . . . Slashing Weapon . | . . . . . . . . . . . . . . . . . . . . . Piercing Weapon . | . . . . . . . . . . . . . . . . . . . . . Special Melee Weapon 1 | . . . . . . . . . . . . . . . . . . . . 1 Unidentified Prototypes 9 | . . 2 . . . . . . . . 1 . 1 . 1 . . . 1 3 Parts Lost 43 | . . 2 . . . 2 . 7 . . 2 . . 2 19 1 1 . 3 4 Power 5 | . . 1 . . . . . 1 . . . . . . 2 . . . 1 . Propulsion 11 | . . . . . . 1 . 1 . . . . . . 5 1 . . . 3 Utility 11 | . . 1 . . . . . 2 . . 1 . . . 5 . 1 . 1 . Weapon 16 | . . . . . . 1 . 3 . . 1 . . 2 7 . . . 1 1 Highest Loss Streak 10 | . . 2 . . . 2 . 5 . . 1 . . 1 10 1 1 . 3 3 To Critical Strikes . | . . . . . . . . . . . . . . . . . . . . . Average Backups 13 | 2 6 14 15 14 14 13 13 13 12 12 12 12 16 21 20 3 4 3 4 2 Power . | . . 1 1 1 1 1 1 . 1 1 1 1 1 1 . . 1 . . . Propulsion . | . 1 . 1 1 1 . . . 1 1 . 1 1 1 . . . . . . Utility 7 | . 3 8 9 8 7 6 6 5 4 6 6 6 9 12 12 2 2 1 1 . Weapon 3 | . 1 3 4 4 5 3 4 5 4 3 3 2 3 4 3 . 1 1 2 1 Tool/Special . | . . . . . . . . . . . . . . . . . . . . . Unused Backups 69 | . 1 11 . 2 . 4 3 1 4 3 6 3 2 14 12 1 . 1 1 . Power 7 | . . 1 . . . 1 . . 1 . 2 . . . 2 . . . . . Propulsion 3 | . . . . . . . 1 . . . 1 . . . 1 . . . . . Utility 45 | . 1 6 . 2 . 3 1 . 1 2 2 3 2 12 8 1 . 1 . . Weapon 12 | . . 4 . . . . . 1 2 1 1 . . 2 . . . . 1 . Tool/Special 2 | . . . . . . . 1 . . . . . . . 1 . . . . . Average Slot Usage (%) 84 | . 100 98 100 100 100 99 93 93 91 92 85 77 80 80 78 3 3 22 45 16 Engine 7 | . 14 10 11 11 11 9 7 7 7 7 6 6 6 6 4 . . 2 3 . Treads 13 | . 28 32 33 33 33 26 29 24 . . . . . . . . . . . . Leg 7 | . . . . . . . . 4 30 30 13 13 13 13 10 . . 4 2 . Device 10 | . 14 11 11 11 11 9 6 8 7 6 13 14 6 10 18 1 3 3 12 . Storage 7 | . 14 11 11 11 11 9 7 7 7 7 6 6 6 6 4 . . . . . Processor 6 | . . 10 11 11 11 9 7 7 7 7 2 4 6 6 4 . . . 1 . Hackware 1 | . . . . . . . 1 . . . 2 . 6 2 6 . . . . . Protection 4 | . . . . . . 8 6 7 7 7 6 6 6 6 3 . . . . . Energy Gun 20 | . 11 18 22 22 20 24 23 22 22 21 24 22 25 24 17 . . 5 8 3 Peak Build Rating 100 | 7 8 21 21 23 23 37 49 48 58 57 78 84 76 80 100 20 6 53 88 78 Average Rating 48 | 5 7 17 21 21 22 29 45 45 55 55 66 72 73 76 77 5 4 27 67 42 On Entrance 34 | . 7 8 21 21 23 23 37 47 41 56 56 74 72 75 76 2 6 2 53 23 Naked Turns 279 | . . . . . . . . . . . . . . . 39 75 88 14 . 63 Heaviest Build 130 | 12 27 34 33 33 35 50 64 67 64 63 76 82 129 130 129 14 3 29 32 43 Greatest Support 140 | 40 40 60 60 60 60 66 88 88 72 72 72 72 72 72 76 9 3 32 140 32 Greatest Overweight (x) 4 | . . 2 . . . . . 4 1 . 2 1 1 1 2 1 . . . 1 Average Overweight (x) . | . . . . . . . . . . . 1 . . 1 . . . . . . Largest Inventory Capacity 25 | 8 15 15 15 15 15 15 15 15 15 15 15 15 25 25 25 5 5 5 5 5 Average Capacity 16 | 7 10 15 15 15 15 15 15 15 15 15 15 15 23 25 23 5 5 5 5 5 Most Carried 25 | 4 12 15 15 15 15 15 15 15 15 15 15 15 24 25 25 5 5 5 5 5 Average Carried 15 | 2 6 14 15 14 15 14 14 14 14 14 13 14 18 23 21 4 5 4 4 3 Final Capacity 25 | 8 15 15 15 15 15 15 15 15 15 15 15 15 25 25 5 5 5 5 5 5 Final Carried 25 | 4 12 15 15 15 15 15 14 13 14 15 14 15 24 25 5 5 5 5 5 3 Class Distribution -------------------- 24% | Skirmisher 21% | Scavenger-Skirmisher 16% | Bothacker-Skirmisher 16% | Scavenger-Mutant 11% | Mutant 4% | Botlord-Skirmisher 3% | Botlord-Gunner Dominant Class ---------------- Mutant | -10/Materials Scavenger-Mutant | -9/Materials Scavenger-Mutant | -9/Mines Scavenger-Mutant | -9/Exiles Scavenger-Mutant | -8/Mines Scavenger-Skirmisher | -8/Materials Skirmisher | -7/Factory Skirmisher | -7/Garrison Skirmisher | -7/Factory Skirmisher | -7/Garrison Bothacker-Skirmisher | -6/Factory Scavenger-Skirmisher | -6/Garrison Scavenger-Skirmisher | -6/Factory Bothacker-Skirmisher | -6/Garrison Botlord-Gunner | -5/Factory Mutant | -5/Upper Caves Mutant | -5/Upper Caves Mutant | -4/Factory Mutant | -3/Research Mutant | -3/Quarantine Resources | -11 -10 -9 -9 -9 -8 -8 -7 -7 -7 -7 -6 -6 -6 -6 -5 -5 -5 -4 -3 -3 ----------- Run | Yrd Mat Mat Min Exi Min Mat Fac Gar Fac Gar Fac Gar Fac Gar Fac Upp Upp Fac Res Qua Matter Collected 5615 | 298 204 657 20 . 44 590 60 757 312 286 563 158 152 844 176 279 2 . 54 159 Remotely 50 | . 50 . . . . . . . . . . . . . . . . . . . Salvage Created 12266 | 122 494 1751 154 . 91 1317 263 1246 519 668 1117 847 376 1270 1362 511 . . 54 104 Parts 508 | 9 26 90 13 . 11 80 13 39 19 16 26 34 12 32 68 5 . . 6 9 Haulers Intercepted 7 | . 1 4 . . . 2 . . . . . . . . . . . . . . Recyclers Shooed 4 | . . 2 . . . . . . . . 1 . . . 1 . . . . . Parts Field Recycled . | . . . . . . . . . . . . . . . . . . . . . Retrieved Matter . | . . . . . . . . . . . . . . . . . . . . . Parts Self-Destructed . | . . . . . . . . . . . . . . . . . . . . . Prevented . | . . . . . . . . . . . . . . . . . . . . . Kills | -11 -10 -9 -9 -9 -8 -8 -7 -7 -7 -7 -6 -6 -6 -6 -5 -5 -5 -4 -3 -3 ------- Run | Yrd Mat Mat Min Exi Min Mat Fac Gar Fac Gar Fac Gar Fac Gar Fac Upp Upp Fac Res Qua Combat Hostiles Destroyed 247 | . 9 31 7 . 4 24 4 38 11 15 19 16 9 27 31 . . . . 2 Guns 163 | . 8 26 7 . 1 15 4 29 11 14 11 4 3 23 6 . . . . 1 Cannons 13 | . . 2 . . . 2 . . . . . 3 . . 6 . . . . . AOE 54 | . 1 . . . 3 6 . 8 . . 5 9 3 2 16 . . . . 1 Classes Destroyed 19 | 2 7 1 1 . 1 3 1 . . . . 1 . . 2 . . . . . Worker 13 | . 1 3 . . 2 4 . . 1 . . . 1 . 1 . . . . . Builder 12 | . 1 . . . . 7 1 . . . . . . . 3 . . . . . Tunneler 5 | 2 . . . . . . . . 1 . 1 . . . 1 . . . . . Hauler 7 | . 1 4 . . . 2 . . . . . . . . . . . . . . Recycler 6 | 1 . 3 . . . . 1 . . . 1 . . . . . . . . . Operator 5 | . 1 1 . . . . . . 1 . . . . . 1 . . . 1 . Watcher 19 | . 3 5 . . . 3 . . 1 . 1 . 2 . 3 . . . 1 . Swarmer 41 | . 3 7 5 . 3 3 . 6 2 . 4 . 3 . 5 . . . . . Saboteur 2 | . . . . . . . . . . . . . . . 2 . . . . . Grunt 118 | . 6 14 1 . . 7 . 19 7 10 12 10 3 17 12 . . . . . Brawler 3 | . . . 1 . . . . 1 . . . . . . 1 . . . . . Duelist 7 | . . . . . . 1 . 3 . 1 . 1 . 1 . . . . . . Protector 1 | . . . . . . . . . . . . . . . 1 . . . . . Sentry 38 | . . 10 . . . 6 1 7 1 2 2 5 2 2 . . . . . . Demolisher 1 | . . . . . . . . . . . . 1 . . . . . . . . Specialist 5 | . . . . . . 2 . . . . . . . . 3 . . . . . Hunter 12 | . . . . . 1 4 . 1 . . . . . . 6 . . . . . Programmer 23 | . . . . . . . 3 1 1 2 3 . 1 7 3 . . . . 2 Heavy 1 | . . . . . . 1 . . . . . . . . . . . . . . Best Kill Streak 23 | 3 5 6 3 . 5 13 2 8 3 3 6 7 4 5 23 . . . 1 1 Combat Bots Only 17 | . 5 6 3 . 3 7 1 8 3 3 5 7 4 5 17 . . . . 1 Max Kills in Single Turn 9 | 1 2 2 2 . 3 4 2 3 1 2 3 3 2 2 9 . . . 1 1 Gunslinging 1 | . . 1 1 . . . . 1 . 1 . . . 1 . . . . . . Exploded 7 | . 1 . . . 2 2 . 3 . . 2 2 2 2 7 . . . . 1 Melee . | . . . . . . . . . . . . . . . . . . . . . Uniques/NPCs Destroyed . | . . . . . . . . . . . . . . . . . . . . . Combat | -11 -10 -9 -9 -9 -8 -8 -7 -7 -7 -7 -6 -6 -6 -6 -5 -5 -5 -4 -3 -3 -------- Run | Yrd Mat Mat Min Exi Min Mat Fac Gar Fac Gar Fac Gar Fac Gar Fac Upp Upp Fac Res Qua Hostile Shots Fired 1505 | . 32 113 24 . 2 77 41 340 29 67 143 52 40 92 208 23 26 . 68 128 Missed 519 | . 6 28 9 . . 25 21 135 11 18 35 24 10 31 59 14 9 . 22 62 Hits 986 | . 26 85 15 . 2 52 20 205 18 49 108 28 30 61 149 9 17 . 46 66 Melee 8 | . . . . . . . . 3 . 1 . . . 2 . . . . . 2 Projectile 978 | . 26 85 15 . 2 52 20 202 18 48 108 28 30 59 149 9 17 . 46 64 AOE 2 | . . . 2 . . . . . . . . . . . . . . . . . Critical Strikes 40 | . . . . . . 1 . 3 1 8 4 . 1 6 9 . 1 . 3 3 Damage Taken 15039 | . 258 1122 146 . 31 1070 204 1988 276 698 1546 325 455 1058 2836 180 329 . 1064 1453 Core 2796 | . 59 132 8 . . 29 . 174 18 54 115 6 20 73 390 120 291 . 211 1096 Absorbed by Shields 16 | . . . . . . . . . . 16 . . . . . . . . . . Redirected to Shielding 97 | . . . . . . . . 97 . . . . . . . . . . . . Regen/Repaired (Parts) 80 | . . 46 . . . . . . . . . . 34 . . . . . . . Core Remaining (%) 74 | 100 76 . . . 65 94 . . . 64 . . . 74 . . 19 100 . . Volleys Fired 659 | 6 41 107 13 . 3 57 11 76 25 48 66 24 21 101 42 1 . . 5 12 Largest 4 | 2 2 2 2 . 2 3 3 3 3 3 4 4 4 4 4 1 . . 3 1 Hottest 320 | 60 100 122 122 . 122 240 240 240 240 240 310 320 320 320 300 100 . . 195 100 Shots Fired 1381 | 12 78 209 26 . 5 155 32 166 63 84 154 43 53 183 96 1 . . 9 12 Gun 1212 | 12 76 202 26 . 3 127 32 142 58 75 131 35 46 154 76 . . . 9 8 Cannon 42 | . . 6 . . . 12 . . . . 3 6 . . 10 1 . . . 4 Launcher 56 | . . . . . 2 16 . 18 5 . 5 . 3 2 5 . . . . . Special 71 | . 2 1 . . . . . 6 . 9 15 2 4 27 5 . . . . . Kinetic 67 | 6 40 12 . . . . . . . . . . . . 3 . . . . 6 Thermal 1066 | 6 11 197 26 . 3 139 32 135 58 52 128 32 46 117 77 1 . . . 6 Explosive 56 | . . . . . 2 16 . 18 5 . 5 . 3 2 5 . . . . . Electromagnetic 124 | . 27 . . . . . . 7 . 23 6 9 . 37 6 . . . 9 . Robot Hit Streak 27 | 5 5 26 25 . 5 27 10 24 14 24 19 10 11 21 8 2 . . 5 2 Robot Miss Streak 8 | 1 3 5 1 . . 5 6 4 6 2 8 3 4 4 4 . . . 1 1 Penetration Max . | . . . . . . . . . . . . . . . . . . . . . Secondary Targets 24 | . 1 2 1 . . 1 . 7 1 3 1 . 1 5 1 . . . . . Max Gunslinging Chain 1 | . 1 1 1 . . 1 . 1 1 1 1 . 1 1 1 . . . . . Shots Hit Robots 934 | 8 48 145 20 . 2 112 23 125 44 55 90 26 45 122 57 1 . . 4 7 Core Hits 729 | 4 24 60 8 . 7 70 18 113 44 42 46 40 36 100 104 7 . . 3 3 Critical Kills 2 | . . . . . . . . . . . . . . . 1 . . . . 1 Critical Parts Destroyed . | . . . . . . . . . . . . . . . . . . . . . Critical Strikes 41 | . . 13 2 . . 9 . . . . 9 . . . 7 . . . . 1 Burn 39 | . . 13 2 . . 9 . . . . 9 . . . 6 . . . . . Meltdown 1 | . . . . . . . . . . . . . . . 1 . . . . . Destroy 1 | . . . . . . . . . . . . . . . . . . . . 1 Melee Attacks 23 | . . 3 . . . 13 . . . . . . . . . . . . . 7 Impact 16 | . . 3 . . . 13 . . . . . . . . . . . . . . Slashing . | . . . . . . . . . . . . . . . . . . . . . Piercing . | . . . . . . . . . . . . . . . . . . . . . Sneak Attacks . | . . . . . . . . . . . . . . . . . . . . . Combat Hostiles . | . . . . . . . . . . . . . . . . . . . . . Follow-up Attacks . | . . . . . . . . . . . . . . . . . . . . . Damage Inflicted 31577 | 101 686 2366 345 . 232 3288 596 4189 1311 1358 2799 1785 1320 3404 6547 899 . . 94 257 Guns 18635 | 101 621 2262 342 . 35 1893 596 2975 1068 1340 1980 490 902 2734 1128 . . . 94 74 Cannons 1981 | . . 94 . . . 200 . . . . . 421 . . 1121 145 . . . . Explosions 10839 | . 62 . . . 197 1187 . 1207 234 . 787 874 404 670 4280 754 . . . 183 Melee . | . . . . . . . . . . . . . . . . . . . . . Ramming 122 | . 3 10 3 . . 8 . 7 9 18 32 . 14 . 18 . . . . . Kinetic 634 | 48 362 170 . . . . . . . . . . . . 54 . . . . . Thermal 24032 | 53 127 2186 342 . 35 2306 596 2975 1152 1294 1980 1785 902 2734 4409 899 . . . 257 Explosive 6235 | . . . . . 197 974 . 1207 150 . 787 . 404 670 1846 . . . . . Electromagnetic 554 | . 194 . . . . . . . . 46 . . . . 220 . . . 94 . Impact . | . . . . . . . . . . . . . . . . . . . . . Slashing . | . . . . . . . . . . . . . . . . . . . . . Piercing . | . . . . . . . . . . . . . . . . . . . . . Highest Corruption 8 | . 2 . . . . . 1 2 2 2 2 1 3 6 1 2 2 . 5 8 Average Corruption 2 | . 2 . . . . . 1 1 2 2 1 1 1 4 1 1 2 . 2 7 Corruption Purged 2 | . . . . . . . . . . . 2 . . . . . . . . . Corruption Blocked . | . . . . . . . . . . . . . . . . . . . . . Effects 143 | . 1 . . . . . 6 21 12 10 3 7 9 53 1 2 4 . . 14 Message Errors 29 | . . . . . . . 1 5 1 . . 3 2 13 1 . 1 . . 2 Matter Fused 38 | . . . . . . . 2 4 8 2 1 1 4 12 . . 1 . . 3 Heat Flow Errors 12 | . . . . . . . 1 . 1 3 1 1 . 4 . . . . . 1 Energy Discharges 24 | . . . . . . . 1 3 . 3 . 1 . 12 . . . . . 4 Parts Rejected 1 | . . . . . . . . . . 1 . . . . . . . . . . Parts Fused 1 | . . . . . . . . . . . . . . . . . . . . 1 Data Loss (minor) 12 | . . . . . . . . 3 . 1 . . . 4 . 2 1 . . 1 Data Loss (major) 9 | . . . . . . . 1 . . . 1 1 3 1 . . 1 . . 1 Misfires 6 | . 1 . . . . . . 3 1 . . . . 1 . . . . . . Alerts 8 | . . . . . . . . 3 . . . . . 4 . . . . . 1 Weapon Failures 3 | . . . . . . . . . 1 . . . . 2 . . . . . . Overload Shots . | . . . . . . . . . . . . . . . . . . . . . Overflow Damage 705 | . . . . . . . . 28 9 . 56 39 35 . 172 366 . . . . Projectiles 199 | . . . . . . . . . . . . 39 . . 34 126 . . . . Explosions 506 | . . . . . . . . 28 9 . 56 . 35 . 138 240 . . . . Melee . | . . . . . . . . . . . . . . . . . . . . . Knockbacks . | . . . . . . . . . . . . . . . . . . . . . Impact . | . . . . . . . . . . . . . . . . . . . . . Kinetic . | . . . . . . . . . . . . . . . . . . . . . Secondary . | . . . . . . . . . . . . . . . . . . . . . Self-Inflicted Damage 257 | . . . . . . 217 . . . . . . . . 40 . . . . . Shots 7 | . . . . . . 5 . . . . . . . . 2 . . . . . Rammed 7 | . 1 1 1 . . 2 . 1 . . . . . . 1 . . . . . Targets Rammed 17 | . 1 2 1 . . 2 . 1 1 2 2 . 2 . 3 . . . . . Kicked 9 | . . . . . . . . . 1 2 2 . 2 . 2 . . . . . Crushed 1 | . . 1 . . . . . . . . . . . . . . . . . . Highest Temperature 522 | . 60 374 2 . . 283 372 375 522 442 319 344 489 207 74 . . . 99 152 Average Temperature 118 | . 24 97 2 . . 71 132 140 123 187 127 179 194 62 19 . . . 35 96 Received Heat Transfer 3825 | . 96 414 18 . . 126 36 651 123 393 597 123 129 258 456 . 153 . . 252 Effects 21 | . . 4 . . . . 2 5 1 3 1 . 5 . . . . . . . Shutdowns 5 | . . 1 . . . . 1 1 . . . . 2 . . . . . . . Energy Bleed 7 | . . 2 . . . . 1 . 1 1 1 . 1 . . . . . . . Interference 4 | . . . . . . . . 4 . . . . . . . . . . . . Short Circuit 1 | . . 1 . . . . . . . . . . . . . . . . . . Damage (minor) 2 | . . . . . . . . . . 2 . . . . . . . . . . Damage (major) 2 | . . . . . . . . . . . . . 2 . . . . . . . Siege Activations . | . . . . . . . . . . . . . . . . . . . . . Martial Activations . | . . . . . . . . . . . . . . . . . . . . . Shielding Activations . | . . . . . . . . . . . . . . . . . . . . . Robots Disrupted 1 | . . . . . . . . . . . . . . . . . . . 1 . Combat Hostiles . | . . . . . . . . . . . . . . . . . . . . . Robots Corrupted . | . . . . . . . . . . . . . . . . . . . . . Combat Hostiles . | . . . . . . . . . . . . . . . . . . . . . Parts Fried . | . . . . . . . . . . . . . . . . . . . . . Impact Corruptions . | . . . . . . . . . . . . . . . . . . . . . Robots Melted 19 | . . 3 . . . 1 . 1 . 1 5 . 3 2 3 . . . . . Combat Hostiles 17 | . . 3 . . . 1 . 1 . 1 3 . 3 2 3 . . . . . Parts Melted 142 | . . 17 1 . . 14 6 16 6 10 20 6 5 23 17 1 . . . . Heat Transferred 47129 | 125 300 6068 888 . 74 5305 1250 6425 2350 2725 5200 2267 2025 5825 5428 640 . . . 234 Parts Sabotaged 3 | . . . . . . . . . . . . . . . . . . . . 3 Parts Stolen . | . . . . . . . . . . . . . . . . . . . . . Parts Stripped . | . . . . . . . . . . . . . . . . . . . . . Power Chain Reactions 2 | . 2 . . . . . . . . . . . . . . . . . . . Alert | -11 -10 -9 -9 -9 -8 -8 -7 -7 -7 -7 -6 -6 -6 -6 -5 -5 -5 -4 -3 -3 ------- Run | Yrd Mat Mat Min Exi Min Mat Fac Gar Fac Gar Fac Gar Fac Gar Fac Upp Upp Fac Res Qua Maximum Alert Level 5 | . . 2 1 . . 2 1 4 3 4 2 3 2 5 5 . . 2 1 5 Low Security (%) 29 | 100 100 68 34 . 100 51 99 24 . . . . . . . . . . 56 . Level 1 10 | . . 23 65 . . 7 . 3 . . 17 . 29 8 . . . . 43 . Level 2 30 | . . 7 . . . 41 . 35 88 13 82 12 70 20 . . . 100 . . Level 3 16 | . . . . . . . . 22 11 44 . 87 . 26 61 . . . . . Level 4 9 | . . . . . . . . 13 . 41 . . . 37 19 . . . . . Level 5 . | . . . . . . . . . . . . . . 6 1 . . . . . High Security . | . . . . . . . . . . . . . . . 16 . . . . . Max Security 2 | . . . . . . . . . . . . . . . . . . . . 99 Peak Influence 1983 | 10 171 432 261 . 96 608 206 1207 776 1264 685 978 513 1791 1868 . . 598 265 1983 Initial 940 | . . 22 166 . . 25 189 5 633 537 663 429 513 284 940 . . 598 250 66 Average 545 | 1 83 166 199 . 26 246 68 583 619 981 516 815 423 968 1157 . . 539 184 1742 Influence Increases 10797 | 15 289 994 185 . 126 934 165 1332 429 747 712 549 256 1607 1550 90 135 . 79 603 Destroy 0b10 Robot/C 5440 | . 180 620 140 . 80 480 80 760 220 300 400 340 180 700 900 . . . . 60 Destroy 0b10 Robot/NC 375 | 15 35 80 . . 10 80 10 . 20 . 15 . 15 5 80 . . . 10 . Destroy Leader 932 | . 48 178 30 . 20 160 40 50 62 20 82 10 44 40 146 . . . 2 . Allied During Kill 260 | . . . . . . . . . . 4 4 4 . 46 192 . . . . 10 Successful Hack 156 | . . 19 . . . 9 35 28 . 28 16 . . 14 . . . . 7 . Disable Machine 555 | . 15 45 . . . 60 . 60 75 . 90 30 . . 120 . . . 15 45 Anti-Garrison Action 1350 | . . . . . . . . 300 . 300 . 100 . 650 . . . . . . Destroy Structure 829 | . 11 7 . . 16 115 . 104 52 65 60 65 17 137 112 . . . . 68 Partial Spotted 30 | . . . . . . . . . . . 15 . . . . . . . . 15 Lose Combat Pursuer 870 | . . 45 15 . . 30 . 30 . 30 30 . . 15 . 90 135 . 45 405 Influence Decreases 10348 | 15 236 619 422 191 60 583 574 133 868 251 1362 185 827 223 1483 768 365 472 438 273 Entered New Map 5332 | . . 31 262 191 . 41 228 3 574 231 601 185 465 123 851 688 225 352 228 53 Time Decay 3786 | 15 236 568 160 . 60 372 346 . 294 . 571 . 362 . 302 70 130 120 180 . Lost Part 430 | . . 20 . . . 20 . 70 . . 20 . . 20 190 10 10 . 30 40 Lost Ally 500 | . . . . . . . . 60 . 20 20 . . 80 140 . . . . 180 Purge Threat 300 | . . . . . . 150 . . . . 150 . . . . . . . . . Squads Dispatched 60 | . 2 1 . . . 4 4 . 4 . 7 . 3 . 12 . . 1 2 20 Investigation 2 | . . . . . . . . . . . 1 . 1 . . . . . . . Extermination 11 | . . . . . . . 3 . 1 . 1 . 2 . 1 . . 1 2 . Reinforcement 14 | . 2 1 . . . 3 1 . 1 . 3 . . . 3 . . . . . Assault 28 | . . . . . . 1 . . . . 2 . . . 5 . . . . 20 Garrison 5 | . . . . . . . . . 2 . . . . . 3 . . . . . Intercept . | . . . . . . . . . . . . . . . . . . . . . Searches Triggered . | . . . . . . . . . . . . . . . . . . . . . Construction Impeded 4 | . . . . . . 1 . . 1 . . . . . 2 . . . . . Haulers Reinforced . | . . . . . . . . . . . . . . . . . . . . . Active Scanning Responses . | . . . . . . . . . . . . . . . . . . . . . Cargo Convoy Interrupts 2 | . . . . . . . . . . . 1 . . . 1 . . . . . Stealth | -11 -10 -9 -9 -9 -8 -8 -7 -7 -7 -7 -6 -6 -6 -6 -5 -5 -5 -4 -3 -3 --------- Run | Yrd Mat Mat Min Exi Min Mat Fac Gar Fac Gar Fac Gar Fac Gar Fac Upp Upp Fac Res Qua Distress Signals 19 | . 2 5 . . . 3 . . . . . . . . 4 . . . 1 4 Communications Jammed 1 | . . . . . . . . . . . 1 . . . . . . . . . Distress Signals . | . . . . . . . . . . . . . . . . . . . . . Times Spotted 455 | . 15 43 10 . 1 28 6 37 16 18 34 16 14 42 66 8 16 . 13 72 Peak Tracking Total 35 | . 4 6 4 . 1 5 1 7 3 4 5 5 3 7 15 6 6 . 12 35 Tactical Retreats 23 | . . 2 1 . . 1 . 2 . 1 1 . . 1 . 3 4 . 2 5 Traps | -11 -10 -9 -9 -9 -8 -8 -7 -7 -7 -7 -6 -6 -6 -6 -5 -5 -5 -4 -3 -3 ------- Run | Yrd Mat Mat Min Exi Min Mat Fac Gar Fac Gar Fac Gar Fac Gar Fac Upp Upp Fac Res Qua Traps Triggered 21 | . 1 1 . . . . 1 6 . 5 1 2 . 3 . . . . . 1 Indirectly . | . . . . . . . . . . . . . . . . . . . . . Trap Hack Attempts . | . . . . . . . . . . . . . . . . . . . . . Triggered . | . . . . . . . . . . . . . . . . . . . . . Disarmed . | . . . . . . . . . . . . . . . . . . . . . Reprogrammed . | . . . . . . . . . . . . . . . . . . . . . Reused . | . . . . . . . . . . . . . . . . . . . . . Traps Extracted . | . . . . . . . . . . . . . . . . . . . . . Installed . | . . . . . . . . . . . . . . . . . . . . . Triggered . | . . . . . . . . . . . . . . . . . . . . . Machines | -11 -10 -9 -9 -9 -8 -8 -7 -7 -7 -7 -6 -6 -6 -6 -5 -5 -5 -4 -3 -3 ---------- Run | Yrd Mat Mat Min Exi Min Mat Fac Gar Fac Gar Fac Gar Fac Gar Fac Upp Upp Fac Res Qua Machines Disabled 50 | . 1 5 . . . 4 . 5 5 3 6 4 . 5 8 . . . 1 3 Max in Single Turn 4 | . 1 1 . . . 1 . 2 4 1 2 1 . 1 1 . . . 1 2 Garrison Access 1 | . . . . . . . . . . . . . . . . . . . 1 . Garrison Relay 12 | . . . . . . . . 2 . 3 . 2 . 5 . . . . . . Machines Repaired . | . . . . . . . . . . . . . . . . . . . . . Machines Dismantled . | . . . . . . . . . . . . . . . . . . . . . Machines Sabotaged . | . . . . . . . . . . . . . . . . . . . . . Overloaded Fab Kills . | . . . . . . . . . . . . . . . . . . . . . Hacking | -11 -10 -9 -9 -9 -8 -8 -7 -7 -7 -7 -6 -6 -6 -6 -5 -5 -5 -4 -3 -3 --------- Run | Yrd Mat Mat Min Exi Min Mat Fac Gar Fac Gar Fac Gar Fac Gar Fac Upp Upp Fac Res Qua Machines Accessed 57 | . 1 11 . 2 . 10 7 3 1 4 9 1 4 1 . . . . 3 . Terminals 40 | . 1 8 . . . 8 5 3 . 4 5 1 2 1 . . . . 2 . Fabricators 1 | . . . . . . . . . . . 1 . . . . . . . . . Repair Stations 3 | . . 1 . . . . . . . . 1 . 1 . . . . . . . Recycling Units . | . . . . . . . . . . . . . . . . . . . . . Scanalyzers 5 | . . 2 . . . 2 . . . . 1 . . . . . . . . . Garrison Access 6 | . . . . . . . 2 . 1 . 1 . 1 . . . . . 1 . Total Hacks 155 | . 2 38 . 2 . 31 22 5 1 8 25 2 12 1 . . . . 6 . Successful 76 | . . 24 . 2 . 12 8 2 1 2 17 . 5 1 . . . . 2 . Failed 79 | . 2 14 . . . 19 14 3 . 6 8 2 7 . . . . . 4 . Catastrophic 17 | . 1 5 . . . 3 2 1 . 3 1 . 1 . . . . . . . Database Lockouts . | . . . . . . . . . . . . . . . . . . . . . Manual 45 | . 2 15 . 1 . 8 9 . . . 4 . 4 . . . . . 2 . Terminals 104 | . 2 22 . . . 25 17 5 . 8 9 2 8 1 . . . . 5 . Fabricators 2 | . . . . . . . . . . . 2 . . . . . . . . . Repair Stations 7 | . . 2 . . . . . . . . 2 . 3 . . . . . . . Recycling Units . | . . . . . . . . . . . . . . . . . . . . . Scanalyzers 31 | . . 14 . . . 6 . . . . 11 . . . . . . . . . Garrison Access 9 | . . . . . . . 5 . 1 . 1 . 1 . . . . . 1 . Terminal Hacks 28 | . . 5 . 2 . 6 5 2 . 2 2 . 2 1 . . . . 1 . Record 1 | . . . . 1 . . . . . . . . . . . . . . . . Robot Analysis 2 | . . . . . . . 1 . . . . . 1 . . . . . . . Prototype ID Bank 3 | . . 1 . . . 2 . . . . . . . . . . . . . . Open Door 1 | . . . . . . . . . . . . . . . . . . . 1 . Branch Access Points 2 | . . 1 . . . 1 . . . . . . . . . . . . . . Emergency Access Points 3 | . . . . . . . . 1 . 1 . . . 1 . . . . . . Garrison Index 1 | . . . . . . . 1 . . . . . . . . . . . . . Alert Level 1 | . . . . . . 1 . . . . . . . . . . . . . . Unreport Threat 2 | . . . . . . 1 . . . . 1 . . . . . . . . . Locate Traps 5 | . . 2 . . . . 2 . . . . . 1 . . . . . . . Recall Reinforcements 1 | . . . . . . . 1 . . . . . . . . . . . . . Zone Layout 3 | . . 1 . . . 1 . . . . 1 . . . . . . . . . Patrol Navigation 2 | . . . . . . . . 1 . 1 . . . . . . . . . . Proto ID Catalog 1 | . . . . 1 . . . . . . . . . . . . . . . . Fabricator Hacks 1 | . . . . . . . . . . . 1 . . . . . . . . . Network Status 1 | . . . . . . . . . . . 1 . . . . . . . . . Repair Station Hacks 5 | . . 2 . . . . . . . . 1 . 2 . . . . . . . Scan Component 3 | . . 1 . . . . . . . . 1 . 1 . . . . . . . Repair 2 | . . 1 . . . . . . . . . . 1 . . . . . . . Recycling Unit Hacks . | . . . . . . . . . . . . . . . . . . . . . Scanalyzer 30 | . . 14 . . . 5 . . . . 11 . . . . . . . . . Insert Component 15 | . . 7 . . . 3 . . . . 5 . . . . . . . . . Analyze 15 | . . 7 . . . 2 . . . . 6 . . . . . . . . . Garrison Access Hacks 5 | . . . . . . . 1 . 1 . 1 . 1 . . . . . 1 . Unlock Access 4 | . . . . . . . 1 . 1 . 1 . 1 . . . . . . . Seal Access 1 | . . . . . . . . . . . . . . . . . . . 1 . Unauthorized Hacks 7 | . . 3 . . . 1 2 . . . 1 . . . . . . . . . Terminals 7 | . . 3 . . . 1 2 . . . 1 . . . . . . . . . Botnet 6 | . . 2 . . . 1 2 . . . 1 . . . . . . . . . Skim 1 | . . 1 . . . . . . . . . . . . . . . . . . Fabricators . | . . . . . . . . . . . . . . . . . . . . . Repair Stations . | . . . . . . . . . . . . . . . . . . . . . Recycling Units . | . . . . . . . . . . . . . . . . . . . . . Scanalyzers . | . . . . . . . . . . . . . . . . . . . . . Garrison Access . | . . . . . . . . . . . . . . . . . . . . . Data Cores Recovered 1 | . . . . . . . 1 . . . . . . . . . . . . . Used . | . . . . . . . . . . . . . . . . . . . . . Hacking Detections 47 | . 1 11 . . . 10 7 3 . 3 6 1 2 1 . . . . 2 . Full Trace Events 6 | . . 1 . . . . . 1 . 3 . . 1 . . . . . . . Feedback Events . | . . . . . . . . . . . . . . . . . . . . . Feedback Blocked . | . . . . . . . . . . . . . . . . . . . . . Robot Schematics Acquired . | . . . . . . . . . . . . . . . . . . . . . Robots Built . | . . . . . . . . . . . . . . . . . . . . . Authchips . | . . . . . . . . . . . . . . . . . . . . . Time . | . . . . . . . . . . . . . . . . . . . . . Total Robot Build Rating . | . . . . . . . . . . . . . . . . . . . . . Part Schematics Acquired 13 | . . 6 . . . 2 . . . . 5 . . . . . . . . . Parts Built . | . . . . . . . . . . . . . . . . . . . . . Authchips . | . . . . . . . . . . . . . . . . . . . . . Time . | . . . . . . . . . . . . . . . . . . . . . Total Part Build Rating . | . . . . . . . . . . . . . . . . . . . . . Parts Repaired 2 | . . 1 . . . . . . . . . . 1 . . . . . . . Time 104 | . . 60 . . . . . . . . . . 44 . . . . . . . Parts Recycled . | . . . . . . . . . . . . . . . . . . . . . Recycled Matter . | . . . . . . . . . . . . . . . . . . . . . Retrieved Matter . | . . . . . . . . . . . . . . . . . . . . . Retrieved Components . | . . . . . . . . . . . . . . . . . . . . . Parts Scanalyzed 13 | . . 6 . . . 2 . . . . 5 . . . . . . . . . Part Schematics Acquired 13 | . . 6 . . . 2 . . . . 5 . . . . . . . . . Parts Damaged 1 | . . . . . . . . . . . 1 . . . . . . . . . Bothacking | -11 -10 -9 -9 -9 -8 -8 -7 -7 -7 -7 -6 -6 -6 -6 -5 -5 -5 -4 -3 -3 ------------ Run | Yrd Mat Mat Min Exi Min Mat Fac Gar Fac Gar Fac Gar Fac Gar Fac Upp Upp Fac Res Qua Used RIF Installer 5 | . . . . . . . . 1 . 2 . 1 . 1 . . . . . . Robot Detection 1 | . . . . . . . . . . . . 1 . . . . . . . . Watcher Feeds 1 | . . . . . . . . . . 1 . . . . . . . . . . Patrol Navigation 1 | . . . . . . . . . . . . . . 1 . . . . . . Autooverride 1 | . . . . . . . . . . 1 . . . . . . . . . . Robots Hacked 37 | . . . . . . . . . . 4 6 1 1 8 8 . . . . 9 Non-combat 5 | . . . . . . . . . . . 1 . 1 . 3 . . . . . Combat 32 | . . . . . . . . . . 4 5 1 . 8 5 . . . . 9 Autooverrided 9 | . . . . . . . . . . . . . . 2 3 . . . . 4 Robot Hacks Applied 34 | . . . . . . . . . . 5 9 1 1 8 5 . . . . 5 map_earth 1 | . . . . . . . . . . . . . . . 1 . . . . . map_route 4 | . . . . . . . . . . . 1 . 1 . 2 . . . . . mark_security 1 | . . . . . . . . . . . 1 . . . . . . . . . find_garrison 1 | . . . . . . . . . . . 1 . . . . . . . . . spike_heat 1 | . . . . . . . . . . . 1 . . . . . . . . . overload_power 2 | . . . . . . . . . . 2 . . . . . . . . . . amplify_resonance 1 | . . . . . . . . . . . . . . 1 . . . . . . disable_weapons 2 | . . . . . . . . . . 1 1 . . . . . . . . . reboot_system 1 | . . . . . . . . . . 1 . . . . . . . . . . overwrite_iff 10 | . . . . . . . . . . . 3 . . 1 2 . . . . 4 streamctrl_high 4 | . . . . . . . . . . . 1 1 . 1 . . . . . 1 formatsys_high 6 | . . . . . . . . . . 1 . . . 5 . . . . . . Relay Couplers Released 55 | . . . . . . . . 8 . 12 5 8 . 22 . . . . . . Machine Destruction 52 | . . . . . . . . 8 . 12 2 8 . 22 . . . . . . Programmers 3 | . . . . . . . . . . . 3 . . . . . . . . . Attached 14 | . . . . . . . . . . 1 3 1 1 4 3 . . . . 1 Fabnet Peak Effective % . | . . . . . . . . . . . . . . . . . . . . . Robots Rewired 9 | . . . . . . . . 3 . . . . . 6 . . . . . . Allies Hacked . | . . . . . . . . . . . . . . . . . . . . . Hacks Repelled . | . . . . . . . . . . . . . . . . . . . . . Allies | -11 -10 -9 -9 -9 -8 -8 -7 -7 -7 -7 -6 -6 -6 -6 -5 -5 -5 -4 -3 -3 -------- Run | Yrd Mat Mat Min Exi Min Mat Fac Gar Fac Gar Fac Gar Fac Gar Fac Upp Upp Fac Res Qua Total Allies 36 | . . . . . . . . 3 . 1 4 1 . 13 5 . . . . 9 Largest Group 7 | . . . . . . . . 3 . 1 1 1 . 7 6 . . . . 3 Highest-Rated Group 258 | . . . . . . . . 60 . 16 47 32 . 258 246 . . . . 141 Highest-Rated Ally 58 | . . . . . . . . 20 . 16 47 32 . 41 41 . . . . 58 Total Orders 2 | . . . . . . . . . . . . . . 2 . . . . . . STAY 1 | . . . . . . . . . . . . . . 1 . . . . . . FOLLOW 1 | . . . . . . . . . . . . . . 1 . . . . . . Ally Attacks 174 | . . . . . . . . 4 . 12 16 2 . 35 87 . . . . 18 Total Damage 4586 | . . . . . . . . 124 . 129 336 71 . 807 2746 . . . . 373 Kills 34 | . . . . . . . . . . . 1 1 . 9 22 . . . . 1 Allies Corrupted 2 | . . . . . . . . . . . . . . . . . . . . 2 Allies Melted 1 | . . . . . . . . . . . 1 . . . . . . . . . Intel | -11 -10 -9 -9 -9 -8 -8 -7 -7 -7 -7 -6 -6 -6 -6 -5 -5 -5 -4 -3 -3 ------- Run | Yrd Mat Mat Min Exi Min Mat Fac Gar Fac Gar Fac Gar Fac Gar Fac Upp Upp Fac Res Qua Active Infowar (turns) 1700 | 65 628 417 . . . . . . . . 56 . . . 500 2 21 . 11 . Traps 500 | . . . . . . . . . . . . . . . 500 . . . . . Seismic 1110 | 65 628 417 . . . . . . . . . . . . . . . . . . Jamming 56 | . . . . . . . . . . . 56 . . . . . . . . . ECM 34 | . . . . . . . . . . . . . . . . 2 21 . 11 . Robot Analysis Total 2 | . . . . . . . 1 . . . . . 1 . . . . . . . Derelict Logs Recovered 2 | . . . 1 . . . . . . . . . . . . 1 . . . . Drone Launches . | . . . . . . . . . . . . . . . . . . . . . Drone Recoveries . | . . . . . . . . . . . . . . . . . . . . . Exploration | -11 -10 -9 -9 -9 -8 -8 -7 -7 -7 -7 -6 -6 -6 -6 -5 -5 -5 -4 -3 -3 ------------- Run | Yrd Mat Mat Min Exi Min Mat Fac Gar Fac Gar Fac Gar Fac Gar Fac Upp Upp Fac Res Qua Turns Passed 18480 | 121 629 2020 328 337 202 2050 1065 2083 642 1010 1736 843 827 2374 813 151 260 252 370 367 Spaces Moved 10146 | 56 262 869 166 210 117 873 659 1144 347 608 888 476 378 932 370 250 510 320 474 237 Core 923 | 4 . . . . . . . . . . . . . . 75 204 510 95 . 35 Treads 4167 | 52 262 861 166 210 117 873 659 955 . . . . . . . . . . 12 . Legs 3460 | . . . . . . . . 189 347 608 185 476 378 932 295 . . 50 . . Wheels 711 | . . 8 . . . . . . . . 703 . . . . . . . . . Hover 487 | . . . . . . . . . . . . . . . . 46 . 175 266 . Flight 398 | . . . . . . . . . . . . . . . . . . . 196 202 Fastest Speed 35 | 50 160 110 160 160 160 145 145 120 120 120 110 110 110 180 50 50 50 50 39 35 Average Speed 132 | 152 160 159 160 160 160 156 145 145 131 120 126 114 166 180 155 52 50 72 60 50 Slowest Speed 400 | 160 160 160 160 160 160 160 145 400 190 120 180 180 180 180 250 120 50 120 180 125 Overloaded Moves . | . . . . . . . . . . . . . . . . . . . . . Propulsion Burnouts . | . . . . . . . . . . . . . . . . . . . . . Robots Hopped 4 | . . . . . . . . . . . . . . . . . . . 2 2 Potential Cave-ins . | . . . . . . . . . . . . . . . . . . . . . Cave-ins Triggered . | . . . . . . . . . . . . . . . . . . . . . Exploration Rate (%) 42 | 4 43 88 40 59 45 77 21 91 12 64 30 53 16 82 13 49 48 8 12 30 Regions Visited 20 Branch Regions 6 Pre-discovered Areas 1 | . . . . 1 . . . . . . . . . . . . . . . . Known Exits Taken 5 | . . 1 . . . . 1 . 1 . 1 . 1 . . . . . . . Unknown Exits Taken 11 | 1 1 . 1 1 1 1 . . . . . . . . 1 1 1 1 1 . Scrap Searched 2 | . . . . . . . . . . . . . . . . 2 . . . . Spaces Dug 45 | . . 3 . . . 10 . 12 11 . . . 9 . . . . . . . Terrain Destroyed 573 | . 11 3 . . 17 129 . 102 59 . 64 39 20 2 58 24 . . . 45 Melee 12 | . . 2 . . . 10 . . . . . . . . . . . . . . Projectile 8 | . . 1 . . . 3 . . . . . . . . 2 . . . . 2 AOE 553 | . 11 . . . 17 116 . 102 59 . 64 39 20 2 56 24 . . . 43 Terrain Rammed . | . . . . . . . . . . . . . . . . . . . . . Walls Destroyed . | . . . . . . . . . . . . . . . . . . . . . Machines Disabled . | . . . . . . . . . . . . . . . . . . . . . Actions | -11 -10 -9 -9 -9 -8 -8 -7 -7 -7 -7 -6 -6 -6 -6 -5 -5 -5 -4 -3 -3 --------- Run | Yrd Mat Mat Min Exi Min Mat Fac Gar Fac Gar Fac Gar Fac Gar Fac Upp Upp Fac Res Qua Total 13834 | 77 390 1289 203 212 125 1409 738 1393 467 805 1383 725 526 1463 504 267 514 336 547 461 Wait 2177 | 3 65 209 20 . 2 389 40 102 57 90 339 187 92 317 38 6 5 5 41 170 Move 10117 | 55 261 868 165 209 116 872 658 1142 346 606 887 475 377 931 370 249 509 319 469 233 Hop 4 | . . . . . . . . . . . . . . . . . . . 2 2 Pick Up 149 | 4 11 21 . 1 . 12 8 7 6 8 17 9 12 23 7 1 . 2 . . Fast Attach 115 | 7 . 18 . . . 12 2 9 6 4 11 2 3 4 7 4 . 8 11 7 Attach 85 | 1 1 6 . . . 7 4 9 2 2 13 6 1 8 16 1 . 1 1 6 Detach 26 | 1 . 2 . . . . . 1 2 . 1 6 . . 6 1 . . 2 4 Swap 193 | . 6 18 2 . 4 22 6 23 10 17 19 6 11 39 9 . . . 1 . Drop 204 | . 4 35 2 2 . 23 9 11 12 9 28 10 7 24 7 3 . 1 15 2 Fire 659 | 6 41 107 13 . 3 57 11 76 25 48 66 24 21 101 42 1 . . 5 12 Melee 23 | . . 3 . . . 13 . . . . . . . . . . . . . 7 Ram . | . . . . . . . . . . . . . . . . . . . . . Kick 9 | . . . . . . . . . 1 2 2 . 2 . 2 . . . . . Crush 7 | . 1 2 1 . . 2 . 1 . . . . . . . . . . . . Escape Stasis 62 | . . . . . . . . 10 . 19 . . . 15 . . . . . 18 Rewire 4 | . . . . . . . . 2 . . . . . 1 . 1 . . . . Trap . | . . . . . . . . . . . . . . . . . . . . . Miscellaneous . | . . . . . . . . . . . . . . . . . . . . . Route ------- -11/Scrapyard -10/Materials (discovered 2 exits: *Mat / [*Min]) -9/Materials (discovered 5 exits: *Mat x3 / *Min x2) -9/Mines (discovered 2 exits: *Mat / *Exi) -9/Exiles -8/Mines -8/Materials (discovered 2 exits: *Fac x2) -7/Factory (discovered 5 exits: *Fac x2 / [*Sto] / [*Low] / Gar) -7/Garrison (discovered 4 exits: *Fac x4) -7/Factory (discovered 2 exits: [*Low] / Gar) -7/Garrison (discovered 2 exits: *Fac x2) -6/Factory -6/Garrison (discovered 2 exits: *Fac x2) -6/Factory (discovered 4 exits: [*Fac] / [*Low] / [*Ext] / Gar) -6/Garrison (discovered 3 exits: [*Fac x3]) -5/Factory -5/Upper Caves -5/Upper Caves -4/Factory -3/Research -3/Quarantine History --------- Turn | Location | Event 19 | -11/Scrapyard | Discovered new exit (range 15) 122 | -11/Scrapyard | Entered Materials 183 | -10/Materials | Discovered new exit (range 16) 306 | -10/Materials | Build established: Mutant 692 | -10/Materials | Discovered new exit (range 3) 751 | -10/Materials | Entered another Materials area 751 | -9/Materials | Evolved 2 slots: Propulsion x1, Utility x1 1027 | -9/Materials | Discovered new exit (range 7) 1093 | -9/Materials | Discovered new exit (range 10) 1228 | -9/Materials | Build established: Scavenger-Mutant 1494 | -9/Materials | Discovered new exit (range 7) 1659 | -9/Materials | Discovered new exit (range 16) 1803 | -9/Materials | Identified exit to Mines 2281 | -9/Materials | Discovered new exit (range 3) 2395 | -9/Materials | Repaired Prc. Beam Rifle 2771 | -9/Materials | Entered Mines 2775 | -9/Mines | Learned Materials emergency access door positions 2792 | -9/Mines | YI-UF0 nonchalantly dropped a Grenade Launcher on the ground 3034 | -9/Mines | Joined a pair of Derelicts in attacking an 0b10 outpost 3073 | -9/Mines | Discovered new exit (range 15) 3091 | -9/Mines | Deemed a non-threat by the Exiles lab entrance 3092 | -9/Mines | Discovered new exit (range 5) 3099 | -9/Mines | Entered Exiles 3139 | -9/Exiles | Met 8R-AWN 3165 | -9/Exiles | Met EX-HEX 3216 | -9/Exiles | Met EX-BIN 3235 | -9/Exiles | Aligned with FarCom system 3237 | -9/Exiles | Given EX-Vault access code 3275 | -9/Exiles | Opened EX-Vault 3288 | -9/Exiles | Found YOLO Cannon 3321 | -9/Exiles | Warned to stay clear of 0b10 Research branches 3370 | -9/Exiles | Learned location of Zion (-7) 3417 | -9/Exiles | Discovered new exit (range 14) 3436 | -9/Exiles | Left Exiles lab with YOLO Cannon 3436 | -9/Exiles | Entered Mines 3614 | -8/Mines | Discovered new exit (range 16) 3638 | -8/Mines | Entered Materials 3638 | -8/Materials | Evolved 2 slots: Utility x1, Weapon x1 4234 | -8/Materials | Build established: Scavenger-Skirmisher 4843 | -8/Materials | Destroyed 7 combat bots 5145 | -8/Materials | Discovered new exit (range 15) 5509 | -8/Materials | Discovered new exit (range 15) 5638 | -8/Materials | First assault squad dispatched 5688 | -8/Materials | Entered Factory 5688 | -7/Factory | Evolved 2 slots: Propulsion x1, Utility x1 5722 | -7/Factory | Build established: Skirmisher 5856 | -7/Factory | Discovered new exit (range 15) 6065 | -7/Factory | Discovered new exit (range 6) 6423 | -7/Factory | Discovered new exit (range 16) 6597 | -7/Factory | Discovered new exit (range 4) 6750 | -7/Factory | Identified exit to Garrison 6753 | -7/Factory | Entered Garrison 6871 | -7/Garrison | Triggered checkpoint 7119 | -7/Garrison | Triggered checkpoint 7119 | -7/Garrison | Garrison Relay disabled 7255 | -7/Garrison | Triggered checkpoint 7320 | -7/Garrison | Destroyed 8 combat bots 7333 | -7/Garrison | Triggered checkpoint 7448 | -7/Garrison | Discovered new exit (range 12) 7551 | -7/Garrison | Triggered checkpoint 8058 | -7/Garrison | Triggered checkpoint 8104 | -7/Garrison | Lost 3 allies 8175 | -7/Garrison | Discovered new exit (range 9) 8267 | -7/Garrison | Triggered checkpoint 8291 | -7/Garrison | Discovered new exit (range 5) 8443 | -7/Garrison | Triggered checkpoint 8443 | -7/Garrison | Triggered checkpoint 8498 | -7/Garrison | Lost 5 parts (1p1n2u1w) 8721 | -7/Garrison | Installed Relay Interface Framework 8750 | -7/Garrison | Build established: Scavenger-Skirmisher 8795 | -7/Garrison | Discovered new exit (range 10) 8836 | -7/Garrison | Entered Factory 9187 | -7/Factory | Discovered new exit (range 16) 9355 | -7/Factory | Garrison activated, responded to threat 9474 | -7/Factory | Identified exit to Garrison 9478 | -7/Factory | Entered Garrison 9496 | -7/Garrison | Triggered checkpoint 9538 | -7/Garrison | Garrison Relay disabled 9599 | -7/Garrison | Build established: Skirmisher 9788 | -7/Garrison | Triggered checkpoint 9810 | -7/Garrison | Triggered checkpoint 9984 | -7/Garrison | Triggered checkpoint 9990 | -7/Garrison | Garrison Relay disabled 10020 | -7/Garrison | Discovered new exit (range 10) 10091 | -7/Garrison | Expanded RIF knowledge: Watcher Feeds 10308 | -7/Garrison | Build established: Bothacker-Skirmisher 10364 | -7/Garrison | Discovered new exit (range 12) 10370 | -7/Garrison | Triggered checkpoint 10397 | -7/Garrison | Garrison Relay disabled 10421 | -7/Garrison | Expanded RIF knowledge: Autooverride 10488 | -7/Garrison | Entered Factory 10488 | -6/Factory | Evolved 2 slots: Utility x1, Weapon x1 10838 | -6/Factory | First assault squad dispatched 11295 | -6/Factory | Cargo convoy interrupted 12221 | -6/Factory | Identified exit to Garrison 12224 | -6/Factory | Entered Garrison 12272 | -6/Garrison | Triggered checkpoint 12305 | -6/Garrison | Destroyed 7 combat bots 12322 | -6/Garrison | Triggered checkpoint 12322 | -6/Garrison | Triggered checkpoint 12324 | -6/Garrison | Triggered checkpoint 12400 | -6/Garrison | Discovered new exit (range 12) 12508 | -6/Garrison | Expanded RIF knowledge: Robot Detection 12532 | -6/Garrison | Garrison Relay disabled 12687 | -6/Garrison | Build established: Scavenger-Skirmisher 12721 | -6/Garrison | Discovered new exit (range 15) 12840 | -6/Garrison | Triggered checkpoint 12862 | -6/Garrison | Garrison Relay disabled 13067 | -6/Garrison | Entered Factory 13157 | -6/Factory | Repaired Remote Datajack 13185 | -6/Factory | Discovered new exit (range 6) 13742 | -6/Factory | Discovered new exit (range 11) 13767 | -6/Factory | Discovered new exit (range 12) 13830 | -6/Factory | Found Rocket Array 13884 | -6/Factory | Identified exit to Garrison 13894 | -6/Factory | Entered Garrison 13946 | -6/Garrison | Triggered checkpoint 13986 | -6/Garrison | Expanded RIF knowledge: Patrol Navigation 14029 | -6/Garrison | Garrison Relay disabled 14090 | -6/Garrison | Triggered checkpoint 14332 | -6/Garrison | Build established: Bothacker-Skirmisher 14382 | -6/Garrison | Triggered checkpoint 14520 | -6/Garrison | P-60 Hacker assimilated allied Fighter 5a 14711 | -6/Garrison | Discovered new exit (range 13) 14785 | -6/Garrison | Build established: Scavenger-Skirmisher 14796 | -6/Garrison | Triggered checkpoint 14866 | -6/Garrison | Garrison Relay disabled 15035 | -6/Garrison | Triggered checkpoint 15152 | -6/Garrison | Build established: Bothacker-Skirmisher 15182 | -6/Garrison | Spotted B-90 Cyclops 15221 | -6/Garrison | Garrison Relay disabled 15242 | -6/Garrison | Triggered checkpoint 15304 | -6/Garrison | Discovered new exit (range 3) 15548 | -6/Garrison | Build established: Botlord-Skirmisher 15568 | -6/Garrison | Triggered checkpoint 15884 | -6/Garrison | Discovered new exit (range 10) 15888 | -6/Garrison | Build established: Bothacker-Skirmisher 15992 | -6/Garrison | Garrison Relay disabled 16110 | -6/Garrison | Triggered checkpoint 16142 | -6/Garrison | Garrison Relay disabled 16268 | -6/Garrison | Entered Factory 16268 | -5/Factory | Accompanied by 6 allies 16268 | -5/Factory | Evolved 2 slots: Utility x2 16457 | -5/Factory | Build established: Botlord-Gunner 16819 | -5/Factory | Garrison activated, responded to threat 16868 | -5/Factory | First assault squad dispatched 16916 | -5/Factory | Cargo convoy interrupted 16944 | -5/Factory | Lost 8 allies 16945 | -5/Factory | High security lockdown imminent 16967 | -5/Factory | Destroyed 17 combat bots 16975 | -5/Factory | Lost 10 parts (1p2n4u3w) 17025 | -5/Factory | High security lockdown engaged 17039 | -5/Factory | Released all parts (7) 17047 | -5/Factory | Destroyed 9 combat bots 17069 | -5/Factory | Lost 7 parts (1p3n3w) 17074 | -5/Factory | Discovered new exit (range 14) 17081 | -5/Factory | Entered Upper Caves 17121 | -5/Upper Caves | Attracted the attention of an 0b10 outpost 17211 | -5/Upper Caves | Core integrity fell below 50% 17220 | -5/Upper Caves | Learned Factory stockpile data 17224 | -5/Upper Caves | Spotted B-75 Beast 17226 | -5/Upper Caves | Discovered new exit (range 13) 17232 | -5/Upper Caves | Entered another Upper Caves area 17277 | -5/Upper Caves | Attracted the attention of an 0b10 checkpoint 17335 | -5/Upper Caves | Build established: Mutant 17485 | -5/Upper Caves | Discovered new exit (range 15) 17492 | -5/Upper Caves | Core integrity fell below 20% 17492 | -5/Upper Caves | Entered Factory 17492 | -4/Factory | Evolved 2 slots: Power x1, Propulsion x1 17608 | -4/Factory | Discovered new exit (range 2) 17744 | -4/Factory | Entered Research 17744 | -3/Research | Evolved 2 slots: Propulsion x1, Utility x1 18108 | -3/Research | Discovered new exit (range 9) 18114 | -3/Research | Entered Quarantine 18115 | -3/Quarantine | Maximum security lockdown engaged 18141 | -3/Quarantine | Lost 3 parts (1p1u1w) 18144 | -3/Quarantine | Found Alien Artifact 18144 | -3/Quarantine | Identified Subatomic Replicator 18146 | -3/Quarantine | Used Subatomic Replicator to replicate Impulse Thruster Array 18188 | -3/Quarantine | Found Alien Reactor 18188 | -3/Quarantine | Identified Matter Drive 18357 | -3/Quarantine | Spotted Investigator 18411 | -3/Quarantine | Lost 9 allies 18424 | -3/Quarantine | Lost 3 parts (3n) 18432 | -3/Quarantine | Core integrity fell below 50% 18461 | -3/Quarantine | Core integrity fell below 20% 18481 | -3/Quarantine | Destroyed by G-73 Enforcer with Heavy Laser Last Messages --------------- 18392_ G-67 Veteran suffers critical hit (Burn). 18393_ Cesium-ion Thruster destroyed. 18410_ C-30 ARC bursts open, deploying its payload. 18410_ G-73 Enforcer unfolds itself. 18410_ B-74 Champion unfolds itself. 18410_ G-67 Veteran unfolds itself. 18416_ System corrupted: Energy discharge (-28). 18418_ Relay Coupler [Grunt] blown off. 18418_ E-15 Imp destroyed. 18429_ W-44 Eye sends out distress signal. 18436_ System corrupted: Matter fused (-8). 18441_ W-44 Eye sends out distress signal. 18446_ Critical hit (Burn: +37). 18459_ W-44 Eye sends out distress signal. 18461_ FNI0T4NRQUMSI%VYZ 74TL%D2ZD0QU=O#HCU5X O 18465_ ALERT: Heavy assault forces dispatched. 18471_ W-44 Eye sends out distress signal. 18478_ System corrupted: IFF burst signal emitted. Map ----- +----------------------------------------------------+ | ?????????????????????# #?????????????? | | ?????????????????????# " "################# | | ?????????????????????# " | | ?????????????????????# " | | ?????????????????????# """ " " | | ???????????########### "#" "%" " | | ???????????# # ### #######"#"##"" " | | ???????????# """ " #?# #?????######## | | ???????????#"" """ ! ### #####???????#" " | | ???????????#""" """!" gb""""##??????## " | | ???????????#"R " = = #??????## " | | ???????????#""" " [%" #??????#" | | ???????????#"" # ![" #??????## " | | ???????????# ######## " "" #??????#" " | | ???????????####""#####??????# " ##??????## " | | ??????????????####???######## " ##???????## | | ?????????????????????# ####????????#" " | | ?????????????????????# l #???????????## "" | | ?????????????????????# #???????????#""%" | | ?????????????????????# g #?????######## [ | | ????????????????#######g##########???###"#"#"#"=!" | | ????????????????# glmm #??????# #%=" | | ????????????????# T """l""" #??????# """ " " | | ????????????????# w """g""" #??????#= """ + | | ?????????????#### """g""" #??????# """ " " | | ?????????????#"" g"""@""" #??????# #% " | | ?????????????#""" p"""e""" #??????# # " | | ?????????????#"R b"""l""" #??????# "" "" " "% | | ?????????????#""" c"""g""" #??????# ""S"" !#% " | | ?????????????#"" w ggppb #??????# """" "" | | ?????????????####] g #??????########## " | | ????????????????# i% #??????????????## | | ????????????????##########+####??????????????#" " | | ??????????????????????????"!?????????????????## " | | ?????????????????????????? C?????????????????#" =" | | ?????????????????????????? =?????????????????##[%^ | | ?????????????????????????? ?????????????????## !" | | ??????????????????????????C! ????????????????#" " | | ?????????????????????????? ????????????????## " | | ??????????????????????????]/ ?????????????????# | | ??????????????????????????? ?????????????????# " | | ??????????????????????????? ??????????????????# " | | ??????????????????????????????????????????????# " | | ??????????????????????????????????????????????# | | ??????????????????????????????????????????????# | | ??????????????????????????????????????????????#" | | ??????????????????????????????????????????????#%" | | ??????????????????????????????????????????????#" | | ??????????????????????????????????????????????# | | ??????????????????????????????????????????????? | +----------------------------------------------------+ Best States ------------- Heat Dissipation 113 Coolant Potential 65 Energy Generation 25 Energy Capacity 310 Matter Stores 300 Matter Capacity 300 Sight Range 16 Terrain Scan Density 10 ECM Strength 2 Jamming Range 12 Power Amplification 30 Base Temperature (-) 100 Armor Coverage 600 Resistance: EM 15 Propulsion Shielding 66 Evasion (%) 62 Targeting Accuracy 8 Launcher Accuracy 30 Recoil Reduction 4 Particle Charging 15 Offensive Hacking 10 Relay Coupler Types 3 Relay Coupler Value 53 Item Schematics ----------------- Sensor Array | -9/Materials | Scanalyzed Med. Armor Plating | -9/Materials | Scanalyzed Heat Sink | -9/Materials | Scanalyzed Hacking Suite | -9/Materials | Scanalyzed Prc. Beam Rifle | -9/Materials | Scanalyzed Hcp. Storage Unit | -9/Materials | Scanalyzed Particle Charger | -8/Materials | Scanalyzed Hrd. Heavy Armor Plating | -8/Materials | Scanalyzed Remote Datajack | -6/Factory | Scanalyzed Imp. Deuterium Engine | -6/Factory | Scanalyzed Imp. Carbon-fiber Leg | -6/Factory | Scanalyzed Hvy. Missile Launcher | -6/Factory | Scanalyzed Imp. Heat Sink | -6/Factory | Scanalyzed Robot Schematics ------------------ None Fabricated ------------ Nothing Repaired ---------- Prc. Beam Rifle | 58% | -9/Materials Remote Datajack | 51% | -6/Factory Alien Tech Used ----------------- Subatomic Replicator Matter Drive Achievements -------------- None Challenges ------------ None Game ------ Seed ArchitectAngularClaws Manual? 0 Play Time 03:39:18 Cumulative 183.9 hours Start 2025.08.09 @ 05:04:15 End 2025.08.09 @ 09:22:54 Sessions 5 Manual Loads 0 Difficulty Rogue Special Mode None Game No. 161 Rogue 122 Adventurer 32 Explorer 7 Win Type - Total 2 Types 2/0/0/0/0/0/0/0/0/0 Lore% 45 Gallery% 63 Achievement% 54 Wizard Run 0 Options --------- Layout 1 ASCII 0 Keyboard 0 Movement Numpad Keybinds 0 Fullscreen 1 Font 24/Smallcaps Map View 50x35 Zoom Use 0% Tactical HUD 1 Map Filters NONE Filters NONE Steam 1 RUN: c0569ecd-ed3a-482c-8c89-cd66230e7793